[Event "*** Titled Tuesday Blitz"]
[Site "Chess.com"]
[Date "2018.06.05"]
[Round "2"]
[White "mazetofonias"]
[Black "gkchesstiger"]
[Result "0-1"]
[WhiteElo "2548"]
[BlackElo "2791"]
[TimeControl "180+2"]
[EndTime "13:26:20 PDT"]
[Termination "gkchesstiger won by resignation"]

1. d4 {[%clk 0:03:01.3]} 1... g6 {[%clk 0:02:59.7]} 2. Nf3 {[%clk 0:03:02.6]}
2... Bg7 {[%clk 0:03:00.8]} 3. c3 {[%clk 0:03:03.9]} 3... Nf6 {[%clk 0:02:58.5]}
4. Bg5 {[%clk 0:03:05.3]} 4... d6 {[%clk 0:02:58.6]} 5. Nbd2 {[%clk 0:03:06.7]}
5... h6 {[%clk 0:02:58.9]} 6. Bh4 {[%clk 0:03:06.9]} 6... O-O {[%clk 0:02:59.3]}
7. e4 {[%clk 0:03:05.1]} 7... c5 {[%clk 0:03:00.5]} 8. dxc5 {[%clk 0:03:05.7]}
8... dxc5 {[%clk 0:03:00.2]} 9. Be2 {[%clk 0:03:07.2]} 9... Nh5 {[%clk
0:02:59.5]} 10. O-O {[%clk 0:03:07.5]} 10... Nc6 {[%clk 0:02:58.9]} 11. Re1
{[%clk 0:03:08.3]} 11... Qc7 {[%clk 0:02:57.8]} 12. Qc2 {[%clk 0:03:09.6]} 12...
b6 {[%clk 0:02:52.4]} 13. Nc4 {[%clk 0:03:10.9]} 13... Bb7 {[%clk 0:02:51.9]}
14. Ne3 {[%clk 0:03:12.3]} 14... e6 {[%clk 0:02:52]} 15. Nd2 {[%clk 0:03:12.4]}
15... Nf4 {[%clk 0:02:49.3]} 16. Bf1 {[%clk 0:03:13.7]} 16... g5 {[%clk
0:02:48.5]} 17. Bg3 {[%clk 0:03:14.2]} 17... Rad8 {[%clk 0:02:49.1]} 18. a4
{[%clk 0:03:12.1]} 18... Ne5 {[%clk 0:02:49.2]} 19. Ndc4 {[%clk 0:03:12.5]}
19... Neg6 {[%clk 0:02:48.5]} 20. Rad1 {[%clk 0:03:10]} 20... h5 {[%clk
0:02:47.6]} 21. h3 {[%clk 0:03:02.4]} 21... Qc6 {[%clk 0:02:45.5]} 22. f3 {[%clk
0:02:52.6]} 22... h4 {[%clk 0:02:42.5]} 23. Bf2 {[%clk 0:02:53.2]} 23... Qc7
{[%clk 0:02:42.7]} 24. Ng4 {[%clk 0:02:52.7]} 24... Rxd1 {[%clk 0:02:27.5]} 25.
Rxd1 {[%clk 0:02:53.5]} 25... f5 {[%clk 0:02:27.4]} 26. exf5 {[%clk 0:02:50.4]}
26... exf5 {[%clk 0:02:28.6]} 27. Nge3 {[%clk 0:02:51.9]} 27... g4 {[%clk
0:01:58.5]} 28. fxg4 {[%clk 0:02:44.3]} 28... fxg4 {[%clk 0:01:59.1]} 29. Nxg4
{[%clk 0:02:42.8]} 29... Nxh3+ {[%clk 0:01:54]} 30. Kh1 {[%clk 0:01:43.5]} 30...
Nxf2+ {[%clk 0:01:52.1]} 31. Nxf2 {[%clk 0:01:43.1]} 31... Qg3 {[%clk
0:00:55.7]} 32. Ne4 {[%clk 0:01:31.5]} 32... Qg4 {[%clk 0:00:47.2]} 33. Ncd6
{[%clk 0:01:25.3]} 33... Bxe4 {[%clk 0:00:35.9]} 34. Nxe4 {[%clk 0:01:17.7]}
34... Nf4 {[%clk 0:00:33.9]} 35. Re1 {[%clk 0:01:04.4]} 35... Kh8 {[%clk
0:00:30.8]} 36. Qd1 {[%clk 0:01:00.7]} 36... Qf5 {[%clk 0:00:22.9]} 37. Nd6
{[%clk 0:00:52.4]} 37... Qg6 {[%clk 0:00:23.1]} 38. Ne4 {[%clk 0:00:50.5]} 38...
Nh5 {[%clk 0:00:21.4]} 39. Bd3 {[%clk 0:00:26.2]} 39... c4 {[%clk 0:00:21.4]}
40. Bc2 {[%clk 0:00:26.6]} 40... Nf4 {[%clk 0:00:21.6]} 41. Qf3 {[%clk
0:00:25.9]} 41... h3 {[%clk 0:00:21]} 42. gxh3 {[%clk 0:00:24.4]} 42... Nd3
{[%clk 0:00:22.1]} 43. Qe2 {[%clk 0:00:10.8]} 43... Nxe1 {[%clk 0:00:23]} 44.
Qxe1 {[%clk 0:00:12.7]} 44... Qh5 {[%clk 0:00:23.5]} 45. Nf2 {[%clk 0:00:05.2]}
45... Qf3+ {[%clk 0:00:21.9]} 46. Kg1 {[%clk 0:00:04.3]} 46... Qg3+ {[%clk
0:00:23.1]} 47. Kf1 {[%clk 0:00:05.2]} 47... Qxh3+ {[%clk 0:00:24.2]} 48. Ke2
{[%clk 0:00:06.5]} 48... Qf3+ {[%clk 0:00:22.1]} 49. Kf1 {[%clk 0:00:07.7]}
49... Qh1+ {[%clk 0:00:22.1]} 50. Ke2 {[%clk 0:00:08.3]} 50... Re8+ {[%clk
0:00:23.3]} 51. Be4 {[%clk 0:00:09.6]} 51... Rxe4+ {[%clk 0:00:24]} 52. Nxe4
{[%clk 0:00:11.4]} 52... Qxe4+ {[%clk 0:00:25]} 53. Kd1 {[%clk 0:00:12.9]} 53...
Qxe1+ {[%clk 0:00:22.5]} 54. Kxe1 {[%clk 0:00:10.8]} 54... Bh6 {[%clk
0:00:23.3]} 55. Kd1 {[%clk 0:00:07.5]} 55... Kg7 {[%clk 0:00:23.8]} 56. Kc2
{[%clk 0:00:08.9]} 56... Kf6 {[%clk 0:00:25]} 57. b3 {[%clk 0:00:10.8]} 0-1

[Event "*** Titled Tuesday Blitz"]
[Site "Chess.com"]
[Date "2018.06.05"]
[Round "2"]
[White "BartoszSocko"]
[Black "Duhless"]
[Result "1-0"]
[WhiteElo "2618"]
[BlackElo "2808"]
[TimeControl "180+2"]
[EndTime "13:26:22 PDT"]
[Termination "BartoszSocko won by resignation"]

1. e4 {[%clk 0:03:01.9]} 1... g6 {[%clk 0:02:59.9]} 2. d4 {[%clk 0:03:02.7]}
2... Bg7 {[%clk 0:03:01.4]} 3. Nc3 {[%clk 0:03:04]} 3... d6 {[%clk 0:03:02.9]}
4. Be3 {[%clk 0:03:04.6]} 4... a6 {[%clk 0:03:03.7]} 5. a4 {[%clk 0:03:05.2]}
5... Nd7 {[%clk 0:03:02.4]} 6. Nge2 {[%clk 0:03:05.4]} 6... Ngf6 {[%clk
0:03:02.7]} 7. h3 {[%clk 0:03:06]} 7... O-O {[%clk 0:02:59.3]} 8. g4 {[%clk
0:03:07]} 8... e5 {[%clk 0:03:00.1]} 9. Bg2 {[%clk 0:03:07.6]} 9... exd4 {[%clk
0:02:56.8]} 10. Bxd4 {[%clk 0:03:08.9]} 10... Ne5 {[%clk 0:02:58.4]} 11. O-O
{[%clk 0:03:08.4]} 11... c5 {[%clk 0:02:40.8]} 12. Be3 {[%clk 0:03:04.6]} 12...
Re8 {[%clk 0:02:36.6]} 13. b3 {[%clk 0:03:01.2]} 13... Be6 {[%clk 0:02:30.3]}
14. Qd2 {[%clk 0:03:02]} 14... Rc8 {[%clk 0:02:26.5]} 15. Rad1 {[%clk
0:03:02.8]} 15... Nc6 {[%clk 0:01:45.8]} 16. Qxd6 {[%clk 0:02:55.4]} 16... Qxd6
{[%clk 0:01:46.3]} 17. Rxd6 {[%clk 0:02:57.3]} 17... c4 {[%clk 0:01:47.9]} 18.
f4 {[%clk 0:02:39.5]} 18... cxb3 {[%clk 0:01:43.4]} 19. cxb3 {[%clk 0:02:41.4]}
19... Bxb3 {[%clk 0:01:25]} 20. e5 {[%clk 0:02:42.6]} 20... Bc4 {[%clk
0:01:25.4]} 21. Kf2 {[%clk 0:02:09]} 21... Nb4 {[%clk 0:01:20.9]} 22. exf6
{[%clk 0:02:03.4]} 22... Bf8 {[%clk 0:01:21.4]} 23. Rd7 {[%clk 0:01:55.8]} 23...
Nd3+ {[%clk 0:01:15.3]} 24. Kf3 {[%clk 0:01:56.9]} 24... b5 {[%clk 0:01:06.7]}
25. axb5 {[%clk 0:01:57.1]} 25... axb5 {[%clk 0:01:08.6]} 26. Nd5 {[%clk
0:01:40.8]} 26... Bxd5+ {[%clk 0:00:41.4]} 27. Rxd5 {[%clk 0:01:41.1]} 27... Nb4
{[%clk 0:00:42.3]} 28. Rxb5 {[%clk 0:01:30.9]} 28... Nc2 {[%clk 0:00:42.3]} 29.
Bg1 {[%clk 0:01:22.6]} 29... Rcd8 {[%clk 0:00:40.7]} 30. Re5 {[%clk 0:01:09]}
30... Rd3+ {[%clk 0:00:39.3]} 31. Ke4 {[%clk 0:01:09.7]} 31... Red8 {[%clk
0:00:40.4]} 32. Rc1 {[%clk 0:01:02.6]} 32... Rd2 {[%clk 0:00:41.2]} 33. Bf1
{[%clk 0:00:54.8]} 33... Ba3 {[%clk 0:00:36.3]} 34. Rb1 {[%clk 0:00:51]} 34...
Bd6 {[%clk 0:00:35.4]} 35. Reb5 {[%clk 0:00:42.3]} 35... Re8+ {[%clk 0:00:32.7]}
36. Kf3 {[%clk 0:00:43.4]} 36... Rd3+ {[%clk 0:00:34]} 37. Kg2 {[%clk
0:00:44.7]} 37... Rd2 {[%clk 0:00:35.1]} 38. Re5 {[%clk 0:00:29.1]} 38... Bxe5
{[%clk 0:00:32.6]} 39. fxe5 {[%clk 0:00:31]} 39... h5 {[%clk 0:00:31.9]} 40. Kf3
{[%clk 0:00:30.1]} 40... hxg4+ {[%clk 0:00:30.7]} 41. hxg4 {[%clk 0:00:32]}
41... Rxe5 {[%clk 0:00:30.9]} 42. Nf4 {[%clk 0:00:27.8]} 42... Re1 {[%clk
0:00:21.5]} 43. Rxe1 {[%clk 0:00:21]} 43... Nxe1+ {[%clk 0:00:22.6]} 44. Ke4
{[%clk 0:00:22.6]} 44... Nc2 {[%clk 0:00:20.9]} 45. Bc4 {[%clk 0:00:21]} 45...
Rd1 {[%clk 0:00:19.2]} 46. Bf2 {[%clk 0:00:20.6]} 46... Rd2 {[%clk 0:00:18.8]}
47. Bc5 {[%clk 0:00:18]} 47... g5 {[%clk 0:00:13.7]} 48. Nh3 {[%clk 0:00:11.5]}
48... Rg2 {[%clk 0:00:14.7]} 49. Kf5 {[%clk 0:00:09]} 49... Kh8 {[%clk 0:00:03]}
50. Nxg5 {[%clk 0:00:10.2]} 50... Rg3 {[%clk 0:00:03.2]} 51. Nxf7+ {[%clk
0:00:11.1]} 51... Kh7 {[%clk 0:00:04.6]} 52. Ng5+ {[%clk 0:00:12.2]} 52... Kh8
{[%clk 0:00:06]} 53. f7 {[%clk 0:00:12.2]} 53... Ne3+ {[%clk 0:00:07.3]} 54.
Bxe3 {[%clk 0:00:12.7]} 1-0

[Event "*** Titled Tuesday Blitz"]
[Site "Chess.com"]
[Date "2018.06.05"]
[Round "2"]
[White "Blitzking4444"]
[Black "PawnEatingZombie"]
[Result "1-0"]
[WhiteElo "2068"]
[BlackElo "2030"]
[TimeControl "180+2"]
[EndTime "13:26:23 PDT"]
[Termination "Blitzking4444 won by resignation"]

1. e4 {[%clk 0:03:01.9]} 1... c5 {[%clk 0:02:59.9]} 2. Nf3 {[%clk 0:03:02.5]}
2... e6 {[%clk 0:03:01.4]} 3. d4 {[%clk 0:03:03.2]} 3... cxd4 {[%clk 0:03:02.9]}
4. Nxd4 {[%clk 0:03:05.1]} 4... a6 {[%clk 0:03:03.8]} 5. c4 {[%clk 0:03:05.3]}
5... Nf6 {[%clk 0:03:03.9]} 6. Nc3 {[%clk 0:03:05.2]} 6... Bb4 {[%clk
0:03:05.3]} 7. Qd3 {[%clk 0:03:05.8]} 7... O-O {[%clk 0:03:03.3]} 8. f3 {[%clk
0:02:52.4]} 8... d5 {[%clk 0:02:54]} 9. e5 {[%clk 0:02:45]} 9... Nfd7 {[%clk
0:02:53.9]} 10. Bf4 {[%clk 0:02:40.3]} 10... Nc6 {[%clk 0:02:45.3]} 11. Nxc6
{[%clk 0:02:25.4]} 11... bxc6 {[%clk 0:02:47.2]} 12. O-O-O {[%clk 0:02:11.5]}
12... a5 {[%clk 0:02:37.4]} 13. a3 {[%clk 0:02:09.3]} 13... Be7 {[%clk 0:02:37]}
14. Qc2 {[%clk 0:02:07]} 14... Ba6 {[%clk 0:02:30.1]} 15. Bd3 {[%clk 0:01:37.7]}
15... Bg5 {[%clk 0:02:25.1]} 16. Qd2 {[%clk 0:01:27.3]} 16... Bxf4 {[%clk
0:02:18.7]} 17. Qxf4 {[%clk 0:01:28]} 17... Qb8 {[%clk 0:02:09.6]} 18. Rhe1
{[%clk 0:01:18.6]} 18... Nc5 {[%clk 0:02:10.2]} 19. Qh4 {[%clk 0:00:44.5]} 19...
Nxd3+ {[%clk 0:02:07.4]} 20. Rxd3 {[%clk 0:00:45.3]} 20... Bxc4 {[%clk
0:02:08.7]} 21. Rd4 {[%clk 0:00:46.1]} 21... Qb3 {[%clk 0:02:01.7]} 22. Red1
{[%clk 0:00:29.3]} 22... Rab8 {[%clk 0:02:01.3]} 23. R1d2 {[%clk 0:00:30.5]}
23... f5 {[%clk 0:01:36.1]} 24. exf6 {[%clk 0:00:30.7]} 24... Rxf6 {[%clk
0:01:36.6]} 25. Rg4 {[%clk 0:00:31.1]} 25... Rbf8 {[%clk 0:01:29.8]} 26. Qg3
{[%clk 0:00:29.6]} 26... Qb7 {[%clk 0:01:21.7]} 27. h4 {[%clk 0:00:25.4]} 27...
R6f7 {[%clk 0:01:18]} 28. h5 {[%clk 0:00:25.9]} 28... Qc7 {[%clk 0:01:18.4]} 29.
Qh4 {[%clk 0:00:22.7]} 29... Qe5 {[%clk 0:01:11.4]} 30. h6 {[%clk 0:00:10.3]}
30... g6 {[%clk 0:01:11.5]} 31. Qf2 {[%clk 0:00:11]} 31... Rf4 {[%clk
0:01:06.5]} 32. Rxf4 {[%clk 0:00:06.5]} 32... Qxf4 {[%clk 0:01:07.2]} 33. Qc5
{[%clk 0:00:03.8]} 33... Qxh6 {[%clk 0:01:05.7]} 34. Qxc6 {[%clk 0:00:05.1]}
34... Qe3 {[%clk 0:00:59.9]} 35. Kc2 {[%clk 0:00:03.2]} 35... Qe5 {[%clk
0:00:44.3]} 36. b3 {[%clk 0:00:04.3]} 36... Bf1 {[%clk 0:00:42.3]} 37. Rf2
{[%clk 0:00:03.8]} 37... Qf5+ {[%clk 0:00:41.9]} 38. Kb2 {[%clk 0:00:03.4]}
38... Bd3 {[%clk 0:00:35.4]} 39. Nb5 {[%clk 0:00:02.6]} 39... Bxb5 {[%clk
0:00:34.7]} 40. Qxb5 {[%clk 0:00:04.3]} 40... Qe5+ {[%clk 0:00:33.2]} 41. Ka2
{[%clk 0:00:04.9]} 41... Qd6 {[%clk 0:00:29.7]} 42. Qxa5 {[%clk 0:00:05.4]}
42... Rd8 {[%clk 0:00:29.5]} 43. Qd2 {[%clk 0:00:04.8]} 43... d4 {[%clk
0:00:30.5]} 44. Re2 {[%clk 0:00:05.5]} 44... d3 {[%clk 0:00:30.8]} 45. Re3
{[%clk 0:00:06.8]} 45... e5 {[%clk 0:00:30.1]} 46. Kb2 {[%clk 0:00:05.9]} 46...
Qd4+ {[%clk 0:00:30.7]} 47. Ka2 {[%clk 0:00:07.1]} 47... Kg7 {[%clk 0:00:28.9]}
48. Re4 {[%clk 0:00:08.3]} 48... Qd5 {[%clk 0:00:29]} 49. Re3 {[%clk 0:00:06.7]}
49... Rd7 {[%clk 0:00:28.7]} 50. Re4 {[%clk 0:00:07.7]} 50... Rc7 {[%clk
0:00:24.6]} 51. Rc4 {[%clk 0:00:03.7]} 51... Rxc4 {[%clk 0:00:25.1]} 52. bxc4
{[%clk 0:00:05.1]} 52... Qxc4+ {[%clk 0:00:26.4]} 53. Kb2 {[%clk 0:00:05.5]}
53... Qd4+ {[%clk 0:00:22.8]} 54. Kb1 {[%clk 0:00:04.8]} 54... Qc4 {[%clk
0:00:22.6]} 55. Kb2 {[%clk 0:00:04.8]} 55... e4 {[%clk 0:00:21.1]} 56. fxe4
{[%clk 0:00:05.2]} 56... Qxe4 {[%clk 0:00:22.6]} 57. Qc3+ {[%clk 0:00:03.4]}
57... Kh6 {[%clk 0:00:22.4]} 58. Qd2+ {[%clk 0:00:04.2]} 58... Kh5 {[%clk
0:00:23.4]} 59. Qd1+ {[%clk 0:00:04.4]} 59... Kh4 {[%clk 0:00:22.6]} 60. Qe1+
{[%clk 0:00:05.6]} 60... Kh5 {[%clk 0:00:22.9]} 61. Qxe4 {[%clk 0:00:06.4]} 1-0

[Event "*** Titled Tuesday Blitz"]
[Site "Chess.com"]
[Date "2018.06.05"]
[Round "2"]
[White "Zhuu96"]
[Black "Patzel09"]
[Result "1-0"]
[WhiteElo "2929"]
[BlackElo "2582"]
[TimeControl "180+2"]
[EndTime "13:26:27 PDT"]
[Termination "Zhuu96 won by resignation"]

1. e4 {[%clk 0:03:01.2]} 1... g6 {[%clk 0:02:57]} 2. d4 {[%clk 0:03:01.9]} 2...
c6 {[%clk 0:02:57.8]} 3. Nf3 {[%clk 0:03:01.1]} 3... d5 {[%clk 0:02:58.7]} 4.
Bd3 {[%clk 0:03:02.2]} 4... dxe4 {[%clk 0:02:56.6]} 5. Bxe4 {[%clk 0:03:03.3]}
5... Nf6 {[%clk 0:02:58.5]} 6. Bd3 {[%clk 0:03:04.5]} 6... Bg7 {[%clk
0:02:55.9]} 7. h3 {[%clk 0:03:00.9]} 7... O-O {[%clk 0:02:52.6]} 8. O-O {[%clk
0:03:01.8]} 8... Nbd7 {[%clk 0:02:42.5]} 9. Re1 {[%clk 0:03:02.3]} 9... b6
{[%clk 0:02:41.2]} 10. c4 {[%clk 0:03:02.9]} 10... c5 {[%clk 0:02:38.6]} 11. d5
{[%clk 0:03:03.7]} 11... b5 {[%clk 0:02:39.7]} 12. cxb5 {[%clk 0:02:51.3]} 12...
Bb7 {[%clk 0:02:38.6]} 13. Nc3 {[%clk 0:02:50.9]} 13... Nb6 {[%clk 0:02:26.8]}
14. Ne5 {[%clk 0:02:50.9]} 14... Nfxd5 {[%clk 0:02:25.6]} 15. Nxd5 {[%clk
0:02:28.8]} 15... Qxd5 {[%clk 0:02:23.2]} 16. Nc6 {[%clk 0:02:29.9]} 16... Bxc6
{[%clk 0:02:18.4]} 17. bxc6 {[%clk 0:02:30.9]} 17... Rad8 {[%clk 0:02:19.2]} 18.
c7 {[%clk 0:02:30.7]} 18... Rc8 {[%clk 0:02:00.7]} 19. Rxe7 {[%clk 0:02:22.1]}
19... c4 {[%clk 0:01:58.5]} 20. Bc2 {[%clk 0:02:20.4]} 20... Qxd1+ {[%clk
0:01:58.9]} 21. Bxd1 {[%clk 0:02:21.1]} 21... Nd5 {[%clk 0:02:00.8]} 22. Rd7
{[%clk 0:02:21.3]} 22... Nb6 {[%clk 0:02:01.5]} 23. Re7 {[%clk 0:02:11.4]} 23...
Nd5 {[%clk 0:02:02.6]} 24. Rd7 {[%clk 0:02:12.4]} 24... Nb6 {[%clk 0:02:03.5]}
25. Rd6 {[%clk 0:02:13.7]} 25... Rxc7 {[%clk 0:02:02.3]} 26. Bf3 {[%clk
0:02:12.6]} 26... Re8 {[%clk 0:02:00.4]} 27. Rd1 {[%clk 0:02:13]} 27... Na4
{[%clk 0:01:56.7]} 28. Bf4 {[%clk 0:02:10.4]} 28... Rce7 {[%clk 0:01:50]} 29.
Bd6 {[%clk 0:02:10.2]} 29... Re6 {[%clk 0:01:46.4]} 30. Ba3 {[%clk 0:02:01.5]}
30... Nxb2 {[%clk 0:01:43.5]} 31. Rd7 {[%clk 0:01:57.1]} 31... Nd3 {[%clk
0:01:41.8]} 32. Rd1 {[%clk 0:01:54.5]} 32... Re1+ {[%clk 0:01:40.9]} 33. Rxe1
{[%clk 0:01:53.8]} 33... Rxe1+ {[%clk 0:01:20]} 34. Kh2 {[%clk 0:01:54.6]} 34...
Be5+ {[%clk 0:01:20.3]} 35. g3 {[%clk 0:01:55.2]} 35... Rf1 {[%clk 0:00:56.6]}
36. Bd5 {[%clk 0:01:48.1]} 36... Rxf2+ {[%clk 0:00:57.5]} 37. Kg1 {[%clk
0:01:47.9]} 37... Bd4 {[%clk 0:00:40.3]} 38. Bxc4 {[%clk 0:01:25.6]} 38... Bb6
{[%clk 0:00:36.2]} 39. Rxd3 {[%clk 0:00:55.2]} 39... Rc2+ {[%clk 0:00:37.3]} 40.
Kf1 {[%clk 0:00:55.7]} 40... Rxc4 {[%clk 0:00:38.2]} 41. Be7 {[%clk 0:00:49.4]}
41... Rd4 {[%clk 0:00:33.4]} 42. Rc3 {[%clk 0:00:43.3]} 42... Rd2 {[%clk
0:00:32]} 43. a3 {[%clk 0:00:44.1]} 43... Kg7 {[%clk 0:00:30.7]} 44. Bb4 {[%clk
0:00:45.2]} 44... Rf2+ {[%clk 0:00:26.8]} 45. Ke1 {[%clk 0:00:46.3]} 45... Rh2
{[%clk 0:00:26.6]} 46. h4 {[%clk 0:00:47.5]} 46... Ra2 {[%clk 0:00:23.6]} 47.
Bd6 {[%clk 0:00:47.2]} 47... Kf6 {[%clk 0:00:23.4]} 48. Bb4 {[%clk 0:00:45.5]}
48... Ke6 {[%clk 0:00:22.9]} 49. Rc6+ {[%clk 0:00:45.3]} 49... Kf5 {[%clk
0:00:22.1]} 50. Kd1 {[%clk 0:00:45.3]} 50... Kg4 {[%clk 0:00:21.5]} 51. Rf6
{[%clk 0:00:45.8]} 51... Rf2 {[%clk 0:00:21.4]} 52. Rd6 {[%clk 0:00:44.7]} 52...
Kxg3 {[%clk 0:00:22.5]} 53. Be1 {[%clk 0:00:45.3]} 53... Kg4 {[%clk 0:00:21.6]}
54. Rxb6 {[%clk 0:00:44.6]} 54... Ra2 {[%clk 0:00:19.8]} 55. Rb4+ {[%clk
0:00:43]} 55... Kf3 {[%clk 0:00:20.6]} 56. Rb3+ {[%clk 0:00:44]} 56... Ke4
{[%clk 0:00:21.8]} 57. Bd2 {[%clk 0:00:45.1]} 57... Ra1+ {[%clk 0:00:21.6]} 58.
Ke2 {[%clk 0:00:46.4]} 58... Rh1 {[%clk 0:00:23.5]} 59. Rb4+ {[%clk 0:00:47.5]}
59... Kf5 {[%clk 0:00:24.8]} 60. Rf4+ {[%clk 0:00:48]} 60... Ke6 {[%clk
0:00:25.8]} 61. Ra4 {[%clk 0:00:49]} 61... Rh2+ {[%clk 0:00:26.2]} 62. Kd3
{[%clk 0:00:50]} 62... Rh3+ {[%clk 0:00:27.6]} 63. Be3 {[%clk 0:00:51.2]} 63...
f5 {[%clk 0:00:28]} 64. Ke2 {[%clk 0:00:51.8]} 64... Rh2+ {[%clk 0:00:28.8]} 65.
Bf2 {[%clk 0:00:53.2]} 65... h6 {[%clk 0:00:27.6]} 66. Ra6+ {[%clk 0:00:54.4]}
66... Kd5 {[%clk 0:00:26.8]} 67. Rxg6 {[%clk 0:00:55.2]} 67... Rh3 {[%clk
0:00:28.3]} 68. Ra6 {[%clk 0:00:55.5]} 68... Ke4 {[%clk 0:00:29]} 69. Ra4+
{[%clk 0:00:56.5]} 69... Ke5 {[%clk 0:00:29.8]} 70. Rxa7 {[%clk 0:00:57.7]}
70... Rb3 {[%clk 0:00:31.2]} 71. Ra5+ {[%clk 0:00:58.2]} 71... Kf4 {[%clk
0:00:32.7]} 72. Ra4+ {[%clk 0:00:59.4]} 72... Ke5 {[%clk 0:00:33.6]} 73. Be3
{[%clk 0:01:01]} 73... Rb2+ {[%clk 0:00:34.2]} 74. Kf3 {[%clk 0:01:02.3]} 74...
Rb3 {[%clk 0:00:36.1]} 75. Ra5+ {[%clk 0:01:02.9]} 75... Ke6 {[%clk 0:00:37.6]}
76. h5 {[%clk 0:01:03.5]} 76... Kf6 {[%clk 0:00:37.7]} 77. a4 {[%clk 0:01:04.1]}
1-0

[Event "*** Titled Tuesday Blitz"]
[Site "Chess.com"]
[Date "2018.06.05"]
[Round "2"]
[White "champ2005"]
[Black "Alexander_Moskalenko"]
[Result "1-0"]
[WhiteElo "2562"]
[BlackElo "2761"]
[TimeControl "180+2"]
[EndTime "13:26:32 PDT"]
[Termination "champ2005 won on time"]

1. e4 {[%clk 0:03:00.7]} 1... d6 {[%clk 0:03:00]} 2. d4 {[%clk 0:03:01]} 2...
Nf6 {[%clk 0:03:01.9]} 3. Nc3 {[%clk 0:03:02]} 3... e5 {[%clk 0:03:03.8]} 4.
dxe5 {[%clk 0:03:02.4]} 4... dxe5 {[%clk 0:03:05.7]} 5. Qxd8+ {[%clk 0:03:03.8]}
5... Kxd8 {[%clk 0:03:07.6]} 6. Bg5 {[%clk 0:03:03.9]} 6... Be6 {[%clk
0:03:07.9]} 7. O-O-O+ {[%clk 0:03:03.2]} 7... Nd7 {[%clk 0:03:09.2]} 8. f3
{[%clk 0:03:01.6]} 8... c6 {[%clk 0:03:07.5]} 9. g3 {[%clk 0:02:58.2]} 9... Kc7
{[%clk 0:03:03]} 10. Bh3 {[%clk 0:02:59]} 10... Bxh3 {[%clk 0:03:01.2]} 11. Nxh3
{[%clk 0:02:59.7]} 11... Bc5 {[%clk 0:03:02.5]} 12. Rhe1 {[%clk 0:02:55.9]}
12... h6 {[%clk 0:03:02.1]} 13. Be3 {[%clk 0:02:56.6]} 13... Rhd8 {[%clk
0:03:02.3]} 14. Bxc5 {[%clk 0:02:57.2]} 14... Nxc5 {[%clk 0:03:04.2]} 15. Nf2
{[%clk 0:02:56.3]} 15... Ne6 {[%clk 0:03:04]} 16. Ne2 {[%clk 0:02:50.6]} 16...
g6 {[%clk 0:02:53.3]} 17. c3 {[%clk 0:02:47.7]} 17... Nc5 {[%clk 0:02:52.9]} 18.
Kc2 {[%clk 0:02:41.5]} 18... h5 {[%clk 0:02:53.7]} 19. h4 {[%clk 0:02:37.1]}
19... a5 {[%clk 0:02:54]} 20. Rxd8 {[%clk 0:02:37.8]} 20... Rxd8 {[%clk
0:02:54.3]} 21. Rd1 {[%clk 0:02:39.3]} 21... Rb8 {[%clk 0:02:55.4]} 22. Nh3
{[%clk 0:02:39.2]} 22... Ne6 {[%clk 0:02:56]} 23. Nc1 {[%clk 0:02:36.5]} 23...
Nd7 {[%clk 0:02:55.3]} 24. Nd3 {[%clk 0:02:35.9]} 24... a4 {[%clk 0:02:56.1]}
25. a3 {[%clk 0:02:31.9]} 25... b5 {[%clk 0:02:54.2]} 26. Nb4 {[%clk 0:02:27.4]}
26... Ndc5 {[%clk 0:02:54.8]} 27. Nd3 {[%clk 0:02:28]} 27... f6 {[%clk
0:02:52.2]} 28. Nxc5 {[%clk 0:02:28.6]} 28... Nxc5 {[%clk 0:02:54.1]} 29. Nf2
{[%clk 0:02:29.9]} 29... g5 {[%clk 0:02:39.8]} 30. Rh1 {[%clk 0:02:18.1]} 30...
Rh8 {[%clk 0:02:40.1]} 31. Nd3 {[%clk 0:01:53.8]} 31... Kb6 {[%clk 0:02:06.1]}
32. Nxc5 {[%clk 0:01:26.1]} 32... Kxc5 {[%clk 0:02:08]} 33. Kd3 {[%clk
0:01:27.3]} 33... Rd8+ {[%clk 0:02:01.9]} 34. Ke3 {[%clk 0:01:12.9]} 34... Rg8
{[%clk 0:01:47.6]} 35. hxg5 {[%clk 0:01:06.7]} 35... Rxg5 {[%clk 0:01:49.5]} 36.
Kf2 {[%clk 0:01:06.7]} 36... Kc4 {[%clk 0:01:48.4]} 37. f4 {[%clk 0:01:05.1]}
37... exf4 {[%clk 0:01:21.5]} 38. gxf4 {[%clk 0:01:07]} 38... Rc5 {[%clk
0:01:23]} 39. Kf3 {[%clk 0:00:47]} 39... Kb3 {[%clk 0:01:24]} 40. Rh2 {[%clk
0:00:47.5]} 40... Rc4 {[%clk 0:01:06.8]} 41. Re2 {[%clk 0:00:42]} 41... h4
{[%clk 0:00:39.6]} 42. e5 {[%clk 0:00:37.1]} 42... fxe5 {[%clk 0:00:32.6]} 43.
fxe5 {[%clk 0:00:37.4]} 43... Rc5 {[%clk 0:00:34]} 44. e6 {[%clk 0:00:20.6]}
44... Rf5+ {[%clk 0:00:34.2]} 45. Kg4 {[%clk 0:00:21.5]} 45... Rf8 {[%clk
0:00:35.7]} 46. Kxh4 {[%clk 0:00:21.5]} 46... c5 {[%clk 0:00:32.9]} 47. Kg5
{[%clk 0:00:22.3]} 47... b4 {[%clk 0:00:17.4]} 48. axb4 {[%clk 0:00:22.5]} 48...
cxb4 {[%clk 0:00:19.3]} 49. cxb4 {[%clk 0:00:22.9]} 49... Kxb4 {[%clk
0:00:20.7]} 50. e7 {[%clk 0:00:23.8]} 50... Re8 {[%clk 0:00:20.3]} 51. Kf6
{[%clk 0:00:24.6]} 51... Rb8 {[%clk 0:00:21.4]} 52. e8=Q {[%clk 0:00:24.6]}
52... Rxe8 {[%clk 0:00:22.5]} 53. Rxe8 {[%clk 0:00:26.1]} 53... Kb3 {[%clk
0:00:24.4]} 54. Rb8+ {[%clk 0:00:27.4]} 54... Ka2 {[%clk 0:00:25.4]} 55. Ke5
{[%clk 0:00:28.5]} 55... Kb1 {[%clk 0:00:25]} 56. Kd4 {[%clk 0:00:29.2]} 56...
a3 {[%clk 0:00:26.9]} 57. bxa3+ {[%clk 0:00:29.7]} 57... Ka2 {[%clk 0:00:28.8]}
58. a4 {[%clk 0:00:30.8]} 1-0